bitfinex/quotes_SOLUSD_20250714
["timestamp","ask_amount","ask_price","bid_price","bid_amount"]
[1752506326231,0.06,164.72,164.65,32.82]
[1752506326399,0.06,164.72,164.66,16.78468397]
[1752506326600,10.06,164.72,164.66,16.78468397]
[1752506326831,10.0,164.71,164.66,16.78468397]
[1752506327019,10.0,164.7,164.61,0.6074965]
[1752506327219,10.0,164.71,164.64,16.78468397]
[1752506327426,10.60757032,164.7,164.64,16.78468397]
[1752506327639,10.0,164.71,164.62,16.78468397]
[1752506327837,10.0,164.68,164.59,17.61557556]
[1752506328002,10.0,164.66,164.58,50.39557556]
[1752506328334,0.60757032,164.65,164.59,16.78468397]
[1752506328509,10.60757032,164.65,164.59,16.78468397]
[1752506328710,10.60757032,164.65,164.58,32.78]
[1752506328928,10.0,164.64,164.56,17.61557556]
[1752506329221,10.60757032,164.63,164.56,16.78468397]
[1752506329424,10.0,164.63,164.57,16.78468397]
[1752506330018,0.60757032,164.62,164.55,0.03]
[1752506330220,0.60757032,164.63,164.55,17.64557556]
[1752506330395,10.60757032,164.63,164.55,17.64557556]
[1752506330599,10.60757032,164.63,164.57,16.78468397]
[1752506330826,10.0,164.63,164.57,16.78468397]
[1752506331034,10.0,164.63,164.59,16.78468397]
[1752506331328,10.0,164.64,164.59,16.78468397]
[1752506331502,10.0,164.64,164.58,17.61557556]
[1752506331503,10.0,164.63,164.58,16.78468397]
[1752506331700,10.0,164.64,164.58,16.78468397]
[1752506331915,10.0,164.63,164.58,16.78468397]
[1752506332310,10.0,164.63,164.59,16.78468397]
[1752506332506,10.0,164.63,164.55,0.03]
[1752506332700,10.0,164.65,164.56,42.78468397]
[1752506332939,10.26247032,164.67,164.55,6.10702922]
[1752506332940,19.6549,164.67,164.62,16.78468397]
[1752506333110,19.6549,164.67,164.62,34.40025953]
[1752506333314,10.0,164.67,164.62,34.40025953]
[1752506333635,12.55827032,164.71,164.62,34.40025953]
[1752506333636,10.0,164.69,164.62,34.40025953]
[1752506333808,10.60757032,164.69,164.62,34.40025953]
[1752506334006,10.0,164.66,164.62,16.78468397]
[1752506334332,0.60757032,164.69,164.63,16.78468397]
[1752506334333,10.0,164.68,164.63,16.78468397]
[1752506335116,10.0,164.69,164.64,34.40025953]
[1752506335653,0.06,164.71,164.66,16.78468397]
[1752506335811,10.06,164.71,164.68,16.78468397]
[1752506336513,0.06,164.71,164.68,16.78468397]
[1752506336712,0.06,164.71,164.69,16.78468397]
[1752506336916,0.06,164.71,164.67,34.40025953]
[1752506337939,0.06,164.71,164.66,0.60731203]
[1752506338120,0.66757032,164.71,164.65,16.78468397]
[1752506338827,0.06,164.71,164.65,16.78468397]
[1752506339015,0.66757032,164.71,164.65,16.78468397]
[1752506339336,10.0,164.7,164.64,16.78468397]
[1752506339540,10.0,164.69,164.64,16.78468397]
[1752506339841,10.06,164.71,164.65,34.40025953]
[1752506340348,0.06,164.71,164.67,34.40025953]
[1752506340517,0.06,164.71,164.7,34.40025953]
[1752506340722,0.06,164.71,164.7,16.78468397]
[1752506341051,0.06,164.71,164.69,16.78468397]
[1752506341422,0.06,164.71,164.66,16.78468397]
[1752506342116,10.66757032,164.71,164.64,16.78468397]
[1752506342326,10.0,164.69,164.64,16.78468397]
[1752506343239,10.0,164.7,164.61,42.78468397]
[1752506343444,10.0,164.69,164.61,54.13574542]
[1752506343640,10.0,164.68,164.61,16.78468397]
[1752506343820,0.06,164.71,164.61,28.13574542]
[1752506343821,10.0,164.67,164.61,28.13574542]
[1752506344024,10.0,164.69,164.63,11.35106145]
[1752506345039,10.0,164.69,164.63,17.61634702]
[1752506345255,10.0,164.67,164.63,16.78468397]
[1752506345440,10.0,164.67,164.63,106.38468397]
[1752506346839,10.0,164.65,164.63,106.38468397]
[1752506347037,10.0,164.64,164.55,115.63]
[1752506347240,10.0,164.65,164.6,17.61634702]
[1752506347446,10.0,164.68,164.63,16.78468397]
[1752506347647,9.729,164.7,164.63,16.78468397]
[1752506347648,10.0,164.67,164.63,17.39210667]
[1752506348147,10.0,164.68,164.63,35.00845369]
[1752506348457,9.729,164.7,164.63,35.00845369]
[1752506348458,10.0,164.69,164.63,35.00845369]
[1752506348621,10.0,164.69,164.65,16.78468397]
[1752506350246,10.0,164.69,164.67,34.40103099]
[1752506350430,10.06,164.71,164.67,16.78468397]
[1752506350634,0.06,164.71,164.67,34.40103099]
[1752506350949,0.06,164.71,164.67,16.78468397]
[1752506351159,10.06,164.71,164.67,16.78468397]
[1752506351524,0.06,164.71,164.68,35.00826927]
[1752506351721,0.06,164.71,164.68,17.39192225]
[1752506351924,0.06,164.71,164.68,35.00826927]
[1752506352149,0.06,164.71,164.7,34.40103099]
[1752506352571,0.06,164.71,164.7,35.00819553]
[1752506353094,0.06,164.72,164.71,16.78468397]
[1752506353237,0.06,164.72,164.71,46.89933099]
[1752506353440,19.9139,164.84,164.71,46.89933099]
[1752506353633,10.0,164.83,164.82,16.78468397]
[1752506353834,10.0,164.83,164.81,16.78468397]
[1752506354256,10.0,164.86,164.81,16.78468397]
[1752506355025,10.0,164.85,164.81,16.78468397]
[1752506355237,10.0,164.86,164.81,16.78468397]
[1752506355530,10.0,164.85,164.81,16.78468397]
[1752506355939,10.0,164.86,164.81,16.78468397]
[1752506356150,10.0,164.86,164.82,17.61634702]
[1752506356343,10.0,164.86,164.83,16.78468397]
[1752506356749,20.1139,164.88,164.83,34.40103099]
[1752506356956,20.1139,164.88,164.83,16.78468397]
[1752506357142,20.1139,164.88,164.83,17.61634702]
[1752506357462,20.1139,164.88,164.82,34.40103099]
[1752506357662,10.1139,164.88,164.82,16.78468397]
[1752506357962,10.0,164.86,164.81,0.60675929]
[1752506358169,10.0,164.86,164.81,16.78468397]
[1752506358350,10.0,164.86,164.78,0.60686976]
[1752506358657,10.0,164.82,164.79,16.78468397]
[1752506358860,10.0,164.84,164.79,16.78468397]
[1752506359046,10.0,164.82,164.78,17.39155373]
[1752506359435,10.0,164.82,164.77,16.78468397]
[1752506359835,0.60757032,164.81,164.75,32.58]
[1752506360067,10.0,164.8,164.75,32.58]
[1752506360265,10.0,164.79,164.73,34.40103099]
[1752506360469,10.0,164.79,164.75,16.78468397]
[1752506361359,10.0,164.79,164.76,16.78468397]
[1752506361662,10.0,164.8,164.76,16.78468397]
[1752506361862,10.0,164.79,164.73,0.60705396]
[1752506362044,10.0,164.78,164.73,16.78468397]
[1752506362733,10.0,164.78,164.73,34.40103099]
[1752506362932,10.0,164.77,164.73,16.78468397]
[1752506363466,10.0,164.78,164.73,16.78468397]
[1752506363676,10.0,164.76,164.72,89.6]
[1752506363962,10.60757032,164.75,164.62,115.8]
[1752506364145,10.0,164.73,164.66,16.78468397]
[1752506364338,10.0,164.72,164.65,50.15634702]
[1752506364541,10.0,164.72,164.66,17.61634702]
[1752506364744,10.0,164.73,164.69,17.61634702]
[1752506364942,10.0,164.73,164.68,16.78468397]
[1752506365258,10.0,164.72,164.68,66.94103099]
[1752506365454,10.44177032,164.78,164.68,66.94103099]
[1752506365455,10.0,164.74,164.68,66.94103099]
[1752506365660,10.0,164.74,164.7,16.78468397]
[1752506366040,10.0,164.76,164.73,16.78468397]
[1752506366250,19.8342,164.78,164.73,34.40103099]
[1752506367246,10.0,164.78,164.75,16.78468397]
[1752506367455,10.0,164.79,164.75,34.40103099]
[1752506368167,10.0,164.78,164.75,34.40103099]
[1752506368361,10.0,164.79,164.75,34.40103099]
[1752506368569,10.0,164.78,164.75,34.40103099]
[1752506368870,10.0,164.78,164.74,32.54]
[1752506369083,10.0,164.78,164.72,16.78468397]
[1752506369254,10.0,164.76,164.72,16.78468397]
[1752506369756,10.0,164.77,164.72,34.40103099]
[1752506370151,10.0,164.76,164.72,34.40103099]
[1752506370347,10.0,164.77,164.72,34.40103099]
[1752506370549,10.0,164.77,164.74,16.78468397]
[1752506370752,10.0,164.78,164.75,16.78468397]
[1752506371471,10.0,164.78,164.74,16.78468397]
[1752506371650,10.0,164.78,164.73,0.60705396]
[1752506371845,10.38327032,164.82,164.7,16.78468397]
[1752506371846,10.0,164.76,164.7,16.78468397]
[1752506372068,0.60757032,164.75,164.65,17.61634702]
[1752506372262,10.0,164.73,164.7,16.78468397]
[1752506372763,10.0,164.72,164.68,34.40103099]
[1752506373468,10.0,164.73,164.69,0.03]
[1752506373677,10.0,164.72,164.69,0.03]
[1752506373876,10.0,164.73,164.69,0.03]
[1752506374059,10.0,164.74,164.71,16.78468397]
[1752506374576,10.0,164.75,164.71,16.78468397]
[1752506374955,10.0,164.76,164.72,34.40103099]
[1752506375158,10.0,164.78,164.73,0.60705396]
[1752506375374,10.0,164.79,164.75,17.61634702]
[1752506375602,10.0,164.81,164.76,34.40103099]
[1752506375758,9.7757,164.82,164.78,16.78468397]
[1752506375759,19.7757,164.82,164.78,16.78468397]
[1752506376159,10.0,164.84,164.78,34.40103099]
[1752506376372,26.0,164.83,164.78,34.40103099]
[1752506376573,10.0,164.84,164.78,16.78468397]
[1752506376872,26.0,164.83,164.78,34.40103099]
[1752506377053,10.0,164.8,164.78,16.78468397]
[1752506377358,10.0,164.8,164.76,17.3916274]
[1752506377557,10.0,164.79,164.73,16.78468397]
[1752506377757,10.0,164.78,164.73,16.78468397]
[1752506378075,10.0,164.76,164.73,16.78468397]
[1752506378278,10.0,164.77,164.72,34.40103099]
[1752506378578,10.0,164.77,164.72,35.00812181]
[1752506378875,10.0,164.76,164.72,35.00812181]
[1752506379076,10.0,164.78,164.74,17.61634702]
[1752506379269,10.0,164.79,164.75,35.00801126]
[1752506379474,10.0,164.8,164.75,35.00801126]
[1752506379992,10.0,164.8,164.75,16.78468397]
[1752506380157,10.0,164.79,164.75,16.78468397]
[1752506380462,10.0,164.8,164.75,35.00801126]
[1752506380662,10.0,164.79,164.75,35.00801126]
[1752506381580,10.0,164.8,164.75,35.00801126]
[1752506381757,10.0,164.79,164.75,35.00801126]
[1752506382156,10.0,164.79,164.75,17.39166424]
[1752506382376,10.0,164.79,164.71,32.5]
[1752506382684,10.0,164.78,164.72,16.78468397]
[1752506382857,10.0,164.76,164.72,16.78468397]
[1752506383385,10.0,164.76,164.71,16.78468397]
[1752506384983,10.0,164.76,164.69,139.74634702]
[1752506385178,19.5766,164.77,164.69,89.63]
[1752506385381,10.0,164.73,164.69,0.03]
[1752506385583,10.0,164.71,164.69,0.03]
[1752506385760,10.60757032,164.7,164.69,0.03]
[1752506386091,20.45267032,164.7,164.65,0.03]
[1752506386266,10.0,164.66,164.65,0.03]
[1752506388488,10.0,164.67,164.65,0.03]
[1752506388796,10.0,164.68,164.65,0.03]
[1752506388978,10.0,164.69,164.66,16.78468397]
[1752506389677,10.0,164.7,164.66,16.78468397]
[1752506389868,10.0,164.69,164.66,16.78468397]
[1752506390075,10.0,164.71,164.66,16.78468397]
[1752506390284,10.0,164.71,164.65,0.63734892]
[1752506390493,10.0,164.69,164.65,0.03]
[1752506390794,10.0,164.68,164.65,0.03]
[1752506391001,10.0,164.69,164.65,0.03]
[1752506391305,10.0,164.68,164.65,0.03]
[1752506391989,10.0,164.69,164.65,0.03]
[1752506392190,10.0,164.66,164.65,0.03]
[1752506395798,10.0,164.67,164.65,0.03]
[1752506396016,10.0,164.67,164.65,0.63734892]
[1752506396986,10.0,164.66,164.65,0.63734892]
[1752506397187,10.0,164.66,164.65,0.03]
[1752506399608,10.0,164.67,164.65,0.03]
[1752506399911,10.0,164.66,164.65,0.03]
[1752506400807,0.06,164.69,164.65,0.03]
[1752506400808,10.06,164.69,164.65,34.43103099]
[1752506401113,0.06,164.69,164.67,16.78468397]
[1752506401705,0.06,164.69,164.68,28.73871296]
[1752506402396,0.06,164.69,164.68,17.39192225]
[1752506402597,0.06,164.69,164.68,28.73871296]
[1752506403079,0.06,164.69,164.68,34.99613335]
[1752506404797,0.06,164.69,164.68,124.59613335]
[1752506405000,0.06,164.69,164.68,123.98889507]
[1752506405685,0.06,164.69,164.68,106.38468397]
[1752506405895,0.06,164.69,164.68,106.99192225]
[1752506406888,0.06,164.69,164.68,106.38468397]
[1752506407316,0.06,164.69,164.65,0.03]
[1752506407510,10.06,164.69,164.65,17.42203289]
[1752506407819,10.0,164.68,164.65,16.81468397]
[1752506408319,10.06,164.69,164.65,16.81468397]
[1752506408513,10.0,164.68,164.65,16.81468397]
[1752506409088,10.06,164.69,164.65,16.81468397]
[1752506409307,10.0,164.68,164.65,16.81468397]
[1752506410796,10.0,164.66,164.65,0.03]
[1752506417419,71.0163,164.66,164.65,0.03]
[1752506418800,71.5163,164.66,164.65,0.03]
[1752506420202,71.5163,164.66,164.65,1e-08]
[1752506420396,45.5163,164.66,164.65,1e-08]
[1752506423422,10.5,164.66,164.65,1e-08]
[1752506423804,10.0,164.66,164.65,1e-08]
[1752506423997,10.0,164.67,164.65,1e-08]
[1752506424200,42.5,164.68,164.65,1e-08]
[1752506424416,10.0,164.66,164.65,1e-08]
[1752506424938,10.0,164.67,164.65,1e-08]
[1752506425134,10.0,164.66,164.65,16.78468398]
[1752506425309,10.0,164.66,164.65,1e-08]
[1752506425810,10.0,164.66,164.65,16.78468398]
[1752506426008,10.0,164.68,164.65,16.78468398]
[1752506426232,10.06,164.69,164.65,16.78468398]
[1752506426811,10.06,164.69,164.65,28.13633666]
[1752506427027,10.0,164.68,164.65,16.78468398]
[1752506427511,10.06,164.69,164.66,16.78468397]
[1752506427743,10.06,164.69,164.68,28.13633665]
[1752506427744,0.06,164.69,164.68,28.13633665]
[1752506428936,10.0,164.76,164.69,16.78468397]
[1752506429115,10.0,164.77,164.74,11.35165268]
[1752506429317,10.0,164.77,164.76,16.78468397]
[1752506429629,26.0,164.83,164.76,16.78468397]
[1752506429630,10.0,164.81,164.76,28.13633665]
[1752506429933,10.0,164.8,164.78,16.78468397]
[1752506430314,10.0,164.8,164.78,28.13633665]
[1752506430514,10.0,164.8,164.78,16.78468397]
[1752506430714,10.0,164.81,164.78,17.39155373]
[1752506431111,10.0,164.8,164.78,17.39155373]
[1752506431613,10.0,164.8,164.78,17.06888122]
[1752506432336,10.0,164.8,164.76,0.60694343]
[1752506432723,10.0,164.81,164.76,0.60694343]
[1752506432918,10.0,164.8,164.76,0.60694343]
[1752506433126,10.0,164.81,164.76,11.95859611]
[1752506433544,10.0,164.8,164.77,16.78468397]
[1752506433724,10.0,164.8,164.77,17.39159056]
[1752506433928,10.0,164.8,164.77,16.78468397]
[1752506434926,10.0,164.81,164.77,16.78468397]
[1752506435350,10.0,164.8,164.77,16.78468397]
[1752506436411,6.3518,164.84,164.77,16.78468397]
[1752506436412,10.0,164.81,164.77,16.78468397]
[1752506437016,10.0,164.8,164.77,16.78468397]
[1752506437237,10.0,164.78,164.76,16.78468397]
[1752506437847,10.0,164.78,164.66,17.97515268]
[1752506438019,10.0,164.72,164.65,11.35165269]
[1752506438336,10.0,164.71,164.65,1e-08]
[1752506438541,10.0,164.68,164.65,1e-08]
[1752506438849,10.0,164.67,164.65,1e-08]
[1752506439762,26.60757032,164.73,164.65,1e-08]
[1752506439763,10.0,164.68,164.65,1e-08]
[1752506439928,10.0,164.69,164.65,1e-08]
[1752506440249,10.0,164.7,164.65,11.95900161]
[1752506440457,10.0,164.7,164.67,16.78468397]
[1752506441031,10.0,164.71,164.67,16.78468397]
[1752506441434,10.0,164.72,164.67,35.00257586]
[1752506442057,10.0,164.73,164.7,16.78468397]
[1752506442257,10.0,164.73,164.7,34.39530071]
[1752506442628,10.0,164.73,164.7,16.78468397]
[1752506442839,10.0,164.73,164.7,34.39530071]
[1752506443186,10.0,164.76,164.72,34.39530071]
[1752506443461,10.0,164.75,164.72,34.39530071]
[1752506443647,10.0,164.79,164.73,0.60705396]
[1752506443845,10.0,164.78,164.74,16.78468397]
[1752506444355,10.0,164.79,164.74,34.39530071]
[1752506445054,10.0,164.79,164.74,16.78468397]
[1752506445362,42.48,164.8,164.75,17.61061674]
[1752506445660,10.0,164.79,164.77,16.78468397]
[1752506445854,10.0,164.8,164.77,16.78468397]
[1752506446174,6.4515,164.83,164.77,16.78468397]
[1752506446175,10.0,164.79,164.77,16.78468397]
[1752506446667,10.0,164.8,164.77,16.78468397]
[1752506446861,6.4515,164.83,164.72,34.39530071]
[1752506446862,10.0,164.77,164.72,34.39530071]
[1752506447169,10.0,164.79,164.74,16.78468397]
[1752506447461,10.0,164.79,164.77,16.78468397]
[1752506447631,10.0,164.79,164.73,0.60705396]
[1752506447831,10.0,164.79,164.74,16.78468397]
[1752506448033,10.0,164.77,164.71,16.78468397]
[1752506448559,10.0,164.75,164.69,16.78468397]
[1752506448757,10.0,164.75,164.69,34.39530071]
[1752506449836,10.0,164.74,164.69,16.78468397]
[1752506450042,10.0,164.74,164.68,16.78468397]
[1752506450239,10.0,164.74,164.66,33.06731203]
[1752506450444,10.0,164.73,164.67,16.78468397]
[1752506450738,10.0,164.74,164.67,34.39530071]
[1752506450944,10.0,164.73,164.67,16.78468397]
[1752506451138,10.0,164.72,164.67,16.78468397]
[1752506451354,10.0,164.71,164.67,16.78468397]
[1752506451956,10.0,164.71,164.66,16.78468397]
[1752506453181,6.1702,164.74,164.65,1.65550001]
[1752506453182,10.60757032,164.7,164.65,1e-08]
[1752506453331,10.0,164.66,164.65,1e-08]
[1752506453864,10.0,164.67,164.65,1e-08]
[1752506454166,10.0,164.66,164.65,1e-08]
[1752506454674,10.0,164.67,164.65,1e-08]
[1752506454855,10.0,164.66,164.65,1e-08]
[1752506455172,10.0,164.67,164.65,1e-08]
[1752506455370,10.0,164.66,164.65,1e-08]
[1752506455577,10.0,164.67,164.65,1e-08]
[1752506455753,10.0,164.66,164.65,1e-08]
[1752506457551,18.2303,164.66,164.65,1e-08]
[1752506457870,50.6903,164.66,164.65,1e-08]
[1752506458654,55.49734591,164.66,164.65,1e-08]
[1752506459175,10.0,164.59,164.58,0.03]
[1752506460155,10.0,164.6,164.58,0.03]
[1752506460360,8.2303,164.66,164.59,16.78468397]
[1752506460361,10.0,164.62,164.59,16.78468397]
[1752506460572,10.0,164.61,164.59,16.78468397]
[1752506460754,10.0,164.61,164.58,0.03]
[1752506461261,10.0,164.62,164.58,0.03]
[1752506461461,10.0,164.61,164.59,16.78468397]
[1752506461665,10.0,164.61,164.58,0.03]
[1752506462070,10.0,164.62,164.58,0.03]
[1752506462276,10.0,164.62,164.59,16.78468397]
[1752506462486,10.0,164.63,164.59,28.14430538]
[1752506462660,10.0,164.62,164.59,28.14430538]
[1752506462856,10.0,164.62,164.58,0.03]
[1752506463187,10.0,164.62,164.58,16.81468397]
[1752506463486,10.0,164.6,164.58,16.81468397]
[1752506463682,10.0,164.61,164.58,16.81468397]
[1752506463982,10.0,164.6,164.58,16.81468397]
[1752506464176,10.0,164.62,164.58,0.03]
[1752506464681,10.0,164.62,164.6,16.78468397]
[1752506464980,10.0,164.62,164.58,0.63760724]
[1752506465280,10.0,164.61,164.58,0.03]
[1752506465868,0.60757032,164.6,164.58,0.03]
[1752506466089,10.0,164.59,164.58,0.03]
[1752506467460,10.60757032,164.59,164.58,0.03]
[1752506468056,10.0,164.59,164.58,0.03]
[1752506468959,10.60757032,164.59,164.58,0.03]
[1752506470685,10.0,164.59,164.58,0.03]
[1752506473567,42.46,164.59,164.58,0.03]
[1752506473983,10.0,164.59,164.58,0.03]
[1752506474186,42.46,164.59,164.58,0.03]
[1752506477783,10.0,164.59,164.58,0.03]
[1752506477993,42.46,164.59,164.58,0.03]
[1752506478367,68.46,164.59,164.58,0.03]
[1752506478668,42.46,164.59,164.58,1e-08]
[1752506478886,48.528,164.59,164.58,1e-08]
[1752506479289,50.0679,164.59,164.55,1e-08]
[1752506479466,36.0,164.56,164.55,1e-08]
[1752506479663,68.46,164.56,164.55,1e-08]
[1752506479864,42.46,164.56,164.55,1e-08]
[1752506480068,10.0,164.56,164.55,1e-08]
[1752506480373,10.0,164.59,164.55,16.78468398]
[1752506480567,10.0,164.59,164.57,16.78468397]
[1752506480769,32.46,164.61,164.57,16.78468397]
[1752506480770,10.0,164.58,164.57,16.78468397]
[1752506481087,32.46,164.61,164.55,16.78468398]
[1752506481088,10.0,164.57,164.55,16.78468398]
[1752506481473,10.0,164.56,164.55,1e-08]
[1752506484174,42.46,164.56,164.55,1e-08]
[1752506484477,10.0,164.56,164.55,1e-08]
[1752506484999,10.0,164.6,164.56,16.78468397]
[1752506485187,10.0,164.62,164.59,16.78468397]
[1752506485380,32.46,164.64,164.59,16.78468397]
[1752506485381,10.0,164.6,164.59,16.78468397]
[1752506486093,10.0,164.6,164.58,16.78468397]
[1752506486274,10.06,164.65,164.59,11.35962141]
[1752506486470,10.06,164.65,164.61,16.78468397]
[1752506486687,10.0,164.64,164.58,11.35962141]
[1752506486999,10.06,164.65,164.61,28.14430538]
[1752506487192,0.06,164.65,164.63,28.14430538]
[1752506487698,0.06,164.65,164.64,28.75169119]
[1752506488775,0.06,164.72,164.65,16.78468397]
[1752506488981,0.06,164.72,164.69,11.35962141]
[1752506489295,0.06,164.72,164.71,16.78468397]
[1752506491802,10.06,164.72,164.7,16.78468397]
[1752506492374,0.06,164.72,164.69,0.6072014]
[1752506492580,10.06,164.72,164.66,17.6025446]
[1752506492785,10.06,164.72,164.67,17.39195912]
[1752506492983,10.0,164.7,164.64,16.78468397]
[1752506493279,10.0,164.68,164.64,16.78468397]
[1752506493498,10.0,164.68,164.63,16.78468397]
[1752506493701,10.0,164.67,164.63,16.78468397]
[1752506494408,10.0,164.67,164.64,17.6025446]
[1752506494585,10.0,164.67,164.63,34.38722857]
[1752506494898,10.0,164.67,164.63,16.78468397]
[1752506495105,10.0,164.67,164.61,16.78468397]
[1752506495475,10.0,164.66,164.62,16.78468397]
[1752506496008,10.0,164.66,164.61,17.6025446]
[1752506496209,10.0,164.66,164.62,16.78468397]
[1752506496901,10.0,164.68,164.65,34.38722857]
[1752506497110,10.0,164.69,164.67,34.38722857]
[1752506497610,10.0,164.7,164.65,0.60734892]
[1752506497779,10.0,164.7,164.69,16.78468397]
[1752506498584,10.06,164.72,164.69,16.78468397]
[1752506498785,0.06,164.72,164.7,34.38722857]
[1752506499009,0.06,164.72,164.71,17.6025446]
[1752506499190,0.06,164.72,164.71,34.99435624]
[1752506499595,0.06,164.78,164.72,16.78468397]
[1752506499811,0.06,164.78,164.77,34.38722857]
[1752506500006,0.06,164.78,164.77,16.78468397]
[1752506500202,10.06,164.78,164.77,17.39159056]
[1752506500416,10.06,164.78,164.77,16.78468397]
[1752506500616,10.0,164.7,164.63,1.6342]
[1752506500815,10.0,164.7,164.65,17.6025446]
[1752506501010,10.0,164.7,164.66,16.78468397]
[1752506501210,10.0,164.69,164.66,16.78468397]
[1752506501629,10.0,164.7,164.66,16.78468397]
[1752506501797,10.0,164.71,164.67,34.99450372]
[1752506502003,10.0,164.72,164.7,16.78468397]
[1752506502713,10.0,164.74,164.7,16.78468397]
[1752506502898,10.0,164.75,164.71,17.39181164]
[1752506503110,10.0,164.74,164.71,17.39181164]
[1752506504329,10.0,164.75,164.71,17.39181164]
[1752506504507,10.0,164.74,164.71,17.39181164]
[1752506504815,10.0,164.75,164.71,17.39181164]
[1752506505335,10.0,164.73,164.7,16.78468397]
[1752506505534,10.0,164.74,164.72,16.78468397]
[1752506505743,10.0,164.73,164.72,16.78468397]
[1752506506209,10.0,164.74,164.72,16.78468397]
[1752506506735,10.0,164.77,164.72,0.60709082]
[1752506506927,10.06,164.78,164.75,16.78468397]
[1752506507139,0.06,164.78,164.76,0.60694343]
[1752506507733,10.06,164.78,164.76,0.60694343]
[1752506508027,0.06,164.78,164.76,0.60694343]
[1752506508337,10.06,164.78,164.75,16.78468397]
[1752506508513,10.06,164.78,164.75,34.99420884]
[1752506508837,0.06,164.78,164.77,16.78468397]
[1752506509037,0.06,164.78,164.77,17.39159056]
[1752506509251,0.06,164.78,164.77,34.99413516]
[1752506510035,0.2,164.82,164.77,41.06320113]
[1752506510217,0.2,164.82,164.81,16.78468397]
[1752506510423,0.2,164.82,164.81,17.39144326]
[1752506510728,10.2,164.82,164.81,17.39144326]
[1752506511122,10.2,164.82,164.76,6.06931613]
[1752506511123,0.2,164.82,164.8,16.78468397]
[1752506511432,10.2,164.82,164.8,16.78468397]
[1752506511818,10.0,164.81,164.77,16.78468397]
[1752506512019,10.0,164.8,164.77,16.78468397]
[1752506512220,10.0,164.81,164.75,16.78468397]
[1752506512523,10.0,164.78,164.75,0.60698027]
[1752506512737,10.0,164.78,164.73,34.99428253]
[1752506512922,10.0,164.79,164.73,17.39173793]
[1752506513124,10.0,164.76,164.71,16.78468397]
[1752506513337,10.0,164.74,164.71,16.78468397]
[1752506513643,10.0,164.74,164.7,0.60716454]
[1752506513818,10.0,164.74,164.71,16.78468397]
[1752506514016,10.0,164.73,164.71,16.78468397]
[1752506514223,10.0,164.73,164.69,16.78468397]
[1752506514436,10.0,164.73,164.66,33.00731203]
[1752506514437,10.0,164.72,164.66,18.20985663]
[1752506514644,10.0,164.72,164.67,17.6025446]
[1752506514845,10.0,164.71,164.67,17.6025446]
[1752506515024,10.0,164.71,164.68,16.78468397]
[1752506515423,10.0,164.72,164.69,16.78468397]
[1752506515725,10.0,164.71,164.69,16.78468397]
[1752506517037,10.0,164.73,164.71,16.78468397]
[1752506517239,10.0,164.72,164.71,16.78468397]
[1752506517619,10.0,164.74,164.71,16.78468397]
[1752506517818,10.0,164.74,164.73,16.78468397]
[1752506519142,10.0,164.72,164.7,16.78468397]
[1752506520336,10.0,164.71,164.66,16.78468397]
[1752506520641,10.0,164.73,164.69,16.78468397]
[1752506520845,10.0,164.7,164.69,16.78468397]
[1752506521150,10.0,164.7,164.66,34.38722857]
[1752506521443,10.0,164.7,164.65,16.81468397]
[1752506521647,10.0,164.68,164.65,16.81468397]